Workbook

Sheet Overall
A1: 2014-15 Champa Mahila Society Overall Budget
A3: Subproject | B3: 2014-15 Request | C3: 2013-14 Funding | D3: 2012-13 Funding | E3: %Increase (2015 over 2014)
A4: Sarada Balika Bidyamandir (SBB) | B4: =SBB!$E$22 -> 946680 | C4: 832204 | D4: =[1]SBB!E21 -> 860104
A5: Surendra Smriti Bidyaniketan (SSB) | B5: =SSB!$E$22 -> 1294975 | C5: 1094520 | D5: =[1]SSB!E21 -> 1088020
A6: Champabati Seva Sadan (Health) | B6: =Health!$F$21 -> 168900 | C6: 177410 | D6: =[1]Health!E16 -> 190700
A7: Early Childhood/Non-Formal Education Centers (ECE/NFE) | B7: =NFE!$E$20 -> 1133320 | C7: 1082250 | D7: =[1]ECE!E25 -> 1082150
A8: Boys' and Girls' Home | C8: 419350 | D8: ='[1]Boys and Girls Home'!E56 -> 416960
A9: Special Children | B9: ='Special Children'!$E$14 -> 229800 | C9: 230300 | D9: ='[1]Special Children'!F20 -> 196000
A10: Total | B10: =SUM(B4:B9) -> 3773675 | C10: =SUM(C4:C9) -> 3836034 | D10: =SUM(D4:D9) -> 3833934 | E10: =((B10-C10)/C10)*100 -> -1.625611243

Sheet SBB
A1: SBB Budget 2014-2015
A3: Item | B3: # of Unit | C3: Amount / Unit (Rs) | D3: Time (month) | E3: Total Amount | F3: Comments/Questions
A4: Head Teacher’s Salary | B4: 1 | C4: 2100 | D4: 12 | E4: =B4*C4*D4 -> 25200 | F4: last year 1700
A5: Teacher’s Salary | B5: 9 | C5: 2000 | D5: 12 | E5: =B5*C5*D5 -> 216000 | F5: last year 1600
A6: Staff Salary | B6: 1 | C6: 1500 | D6: 12 | E6: =B6*C6*D6 -> 18000 | F6: last year 1100
A7: Cook | B7: 2 | C7: 900 | D7: 12 | E7: =B7*C7*D7 -> 21600 | F7: last year 800 - why only 12.5% increase?
A8: Education material | B8: 190 | C8: 300 | E8: =B8*C8 -> 57000 | F8: reduced from 200 students - how?
A9: Dress | B9: 190 | C9: 200 | E9: =B9*C9 -> 38000 | F9: reduced from Rs 280 - how?
A10: Meal | B10: 203 | C10: 10 | D10: 276 | E10: =B10*C10*D10 -> 560280 | F10: Rs.8 per day same as last year?
A11: Medicine | C11: 300 | D11: 12 | E11: =C11*D11 -> 3600
A12: Sanitation | C12: 2500 | E12: =C12 -> 2500 | F12: reduced from 3000?
A13: Sports, Annual programs | C13: 5000 | E13: =C13 -> 5000
A14: TLM | B14: 10 | D14: 12 | E14: 3500 | F14: how 3500?
A15: Teacher's Orientation Training | C15: 4000 | E15: =C15 -> 4000
A16: Documentary, Office Expense Printing Stationary | C16: 3000 | E16: =C16 -> 3000
A17: News Paper | C17: 1500 | E17: =C17 -> 1500
A18: Social awareness & observation days | C18: 5000 | E18: 5000
A19: Creative activates | C19: 7000 | E19: 7000
A20: Repair & Maintenance for furniture & School Building | C20: 7500 | E20: 7500 | F20: reduced from 19200 - what repair was done last year?
A21: Local contibution Rs. 3 per child per month & guardians' contibution | E21: 32000
A22: Total | E22: =SUM(E4:E20) - E21 -> 946680
A24: 2013-14 Amount from Asha | E24: 832204

Sheet SSB
A1: SSB Budget 2014-2015
A3: Item | B3: # of Unit | C3: Amount / Unit (Rs) | D3: Time (month) | E3: Total Amount | F3: comments
A4: Head Teacher's Salary | B4: 1 | C4: 2100 | D4: 12 | E4: =B4*C4*D4 -> 25200 | F4: last year 1700
A5: Teacher’s Salary | B5: 10 | C5: 2000 | D5: 12 | E5: =B5*C5*D5 -> 240000 | F5: last year 1600
A6: Staff Salary | B6: 1 | C6: 1500 | D6: 12 | E6: =B6*C6*D6 -> 18000 | F6: last year 1100
A7: Cook | B7: 3 | C7: 900 | D7: 12 | E7: =B7*C7*D7 -> 32400 | F7: last year 800 - why only 12.5% increase?
A8: Education material | B8: 295 | C8: 225 | E8: =B8*C8 -> 66375 | F8: reducded from 300 students - how?
A9: Dress | B9: 295 | C9: 200 | E9: =B9*C9 -> 59000 | F9: reduced from 225 - how?
A10: Meal | B10: 310 | C10: 10 | D10: 276 | E10: =B10*C10*D10 -> 855600 | F10: Rs.8 per day same as last year?
A11: Medicine | C11: 300 | D11: 12 | E11: =C11*D11 -> 3600
A12: Sanitation | C12: 2500 | E12: =C12 -> 2500 | F12: reduced from 3000?
A13: Sports, Annual programs | C13: 5000 | E13: =C13 -> 5000
A14: TLM | B14: 11 | C14: 25 | D14: 12 | E14: =B14*C14*D14 -> 3300
A15: Teacher's Orientation Training | C15: 3000 | E15: =C15 -> 3000
A16: Documentary, Office Expense & Printing Stationary | C16: 3200 | E16: 3200
A17: News Paper | C17: 1500 | E17: 1500
A18: Social awareness & observation days | C18: 5000 | E18: 5000
A19: Creative activates | C19: 7000 | E19: 7000
A20: Repair & Maintenance for furniture &School Building | C20: 2700 | E20: 2700
A21: Local contibution Rs. 3 per child per month & guardians' contibution | E21: 38400
A22: Total | E22: =SUM(E4:E20)-E21 -> 1294975
A24: 2013-14 Amount from Asha | E24: 1088020

Sheet Health
C1: CHAMPABATI SEVA SADAN
C2: Health Budget 2014-2015
B3: A. Hospital | C3: Unit | D3: Rate/Unit | E3: per month | F3: per year | G3: Comment/Question
A4: 1 | B4: Doctor | C4: 1 | D4: 9000 | E4: 9000 | F4: 108000
A5: 2 | B5: Nurse Full Time | C5: 2 | D5: 1400 | E5: 2800 | F5: 33600
A6: 3 | B6: Nurse Part Time | C6: 1 | D6: 700 | E6: 700 | F6: =D6*12 -> 8400
A7: 4 | B7: Aya | C7: 2 | D7: 800 | E7: 1600 | F7: 19200
A8: 5 | B8: Superintendent | C8: 1 | D8: 1600 | E8: 1600 | F8: =D8*12 -> 19200 | G8: salary increase of Rs100 from last yr
A9: 6 | B9: Medicine | D9: 6500 | E9: 6500 | F9: =D9*12 -> 78000
A10: 7 | B10: Travelling (staff) | D10: 300 | E10: 300 | F10: 3600
A11: 8 | B11: Travelling (doctor) | D11: 1000 | E11: 1000 | F11: 12000
A12: 9 | B12: Office& Printing Expense | E12: 300 | F12: 3600
A13: 10 | B13: Instrument (repairing) | F13: 10000
A14: 11 | B14: Training on Health, Hygiene, Nutrition for health workers , SBB, SSB & NFE Teacher thrice in a year @ Rs.50/- for 80 heads, Resource person & other expenses. (Rs. 2000) | F14: 6000
B15: Total | F15: =SUM(F4:F14) -> 301600
B16: Income from hospital
A17: 1 | B17: Patient Fees | F17: 70450
A18: 2 | B18: Operation Charge | F18: 34250
A19: 3 | B19: Ambulance Service | F19: 28000
B20: Total | F20: =SUM(F17:F19) -> 132700
B21: Asking from Asha | C21: (301600.00-132700.00) | F21: =F15-F20 -> 168900
B23: 2013-14 Amount from Asha | F23: 177410

Sheet NFE
B1: ECE Budget 2014 -2015
A2: Item | B2: # of Unit | C2: Amount / Unit (RS | D2: Time (month) | E2: Total Amount | F2: Comment/Question
A3: Teacher Salary | B3: 50 | C3: 500 | D3: 12 | E3: =B3*C3*D3 -> 300000 | F3: Rs. 100 increase
A4: Project Leader cum Supervisor | B4: 1 | C4: 800 | D4: 12 | E4: =B4*C4*D4 -> 9600 | F4: Rs. 100 increase
A5: Supervisor | B5: 3 | C5: 700 | D5: 12 | E5: =B5*C5*D5 -> 25200 | F5: Rs. 100 increase
A6: Food 25 X 3 X 50 X 192 days | B6: 1250 | C6: 3 | D6: 192 | E6: =25*3*50*192 -> 720000 | F6: 25 X 3 X 50 X 192 days
A7: Travelling | C7: 4000 | E7: 4000
A8: Medicine | B8: 50 | C8: 40 | D8: 12 | E8: 24000
A9: Education material | B9: 1250 | C9: 65 | E9: =B9 * C9 -> 81250
A10: Contingency | C10: 1500 | E10: 1500 | F10: what was last year's Rs.10,000 used for?
A11: Office Expense, Documentation & Stationary | C11: 3000 | E11: 3000
A12: Cluster wise Sports for N.F.E. Students | B12: 50 | C12: 300 | E12: =B12*C12 -> 15000
A13: Training of N.F. E Teachers with T . L.M 56 Heads X 2 days X @ Rs. 60 Per day for Meal & Tiffin. Twice in a year & cost of and Resource person material Rs. 8550/- Training | B13: 56 | C13: 7635 | D13: 2 | E13: =C13*D13 -> 15270
A14: Creative activities (doll making, drawing, paper cutting, nature observation) | B14: 50 | C14: 300 | E14: =B14*C14 -> 15000
A15: Total center (A) | E15: =SUM(E3:E14) -> 1213820
A16: Collection from children | B16: 1250 | C16: 2 | D16: 12 | E16: =B16*C16*D16 -> 30000
A17: Salary by CMS | C17: 3000 | D17: 12 | E17: 36000
A18: Local contribution | E18: 14500 | F18: Similar amt as last year?
A19: Total (B) | E19: =SUM(E16:E18) -> 80500
A20: Asking from Asha | B20: (B-A) | E20: =E15-E19 -> 1133320
A22: 2013-14 Amount from Asha | E22: 1082250

Sheet Boys and Girls Home
A1: Boys' Home & Girls' Home Budget 2014 -2015
B2: Item | C2: # of Unit (Girls') | D2: # of Unit (Boys') | E2: Per Month Rs. | F2: Amount / Unit (RS | G2: Total Amount | H2: Comments/Questions
A3: 1 | B3: Supervisor | C3: 1 | D3: 1 | E3: 1500 | F3: 3000 | G3: =F3 *12 -> 36000
A4: 2 | B4: House Mother | C4: 1 | E4: 1200 | F4: 1200 | G4: =F4 * 12 -> 14400
A5: 3 | B5: Cook | C5: 4 | D5: 5 | E5: 1000 | F5: =(C5+D5)*E5 -> 9000 | G5: =F5*12 -> 108000
B6: Tutor
A7: 4 | B7: full time | C7: 2 | D7: 2 | E7: 1200 | F7: =(C7+D7)*E7 -> 4800 | G7: =F7*12 -> 57600
A8: 5 | B8: part time | C8: 2 | D8: 2 | E8: 800 | F8: 3200 | G8: 38400
A9: 6 | B9: part time | C9: 5 | D9: 5 | E9: 600 | F9: 6000 | G9: 72000
A10: 7 | B10: Cultural trainer (BH+GH) | D10: 1 | E10: 1000 | F10: 1000 | G10: 12000
A11: 8 | B11: Computer teacher | G11: 1500 | H11: per yr salary?
B12: Total Salary | G12: =SUM(G3:G11) -> 339900
B13: B
A14: 1 | B14: Food for children | C14: 190 | D14: 170 | F14: 35 | G14: =35*365*(C14+D14) -> 4599000 | H14: Rs.35*365 *360
A15: 2 | B15: Food for staff | C15: 8 | D15: 8 | F15: 35 | G15: =(C15+D15)*35*365 -> 204400 | H15: Rs.35*365 *16
A16: 3 | B16: Clothing | C16: 15 | D16: 15 | F16: 400 | G16: =F16 *12*(C16+D16) -> 144000 | H16: 30 units per month?
A17: 4 | B17: Medicines | F17: 150 | G17: =F17 *12*30 -> 54000 | H17: 30 units per month?
A18: 5 | B18: Toiletries | F18: 110 | G18: 39600 | H18: 30 units per month?
A19: 6 | B19: Bedding | F19: 200 | G19: 72000 | H19: 30 units per month?
A20: 7 | B20: Building Maintenance | G20: 18000 | H20: how was 38000 used last yr?
B21: Total | G21: =SUM(G14:G20) -> 5131000
B22: C
A23: 1 | B23: Sports | G23: 4000
A24: 2 | B24: Sports equipment | G24: 5000
A25: *3 | B25: Cultural Function | G25: 8500
A26: *4 | B26: Awareness Progamme | G26: 6200
A27: 5 | B27: Office Stationary | G27: 3500
A28: 6 | B28: Printing Paper | G28: 3500
A29: 7 | B29: Travelling | G29: 4000
A30: *8 | B30: Creative activities | G30: 6000
A31: 9 | B31: Audit Expense | G31: 8000
B32: Total | G32: =SUM(G23:G31) -> 48700
B33: Total A+B+C | G33: =SUM(G12,G21,G32) -> 5519600
A36: 1 | B36: Govt funding including building maintenance | C36: 190 | D36: 170 | E36: 1150 | G36: =(C36+D36)*E36*12 -> 4968000
A37: 2 | B37: Vegetable garden, fish, rice | G37: 75300
A38: 3 | B38: Other sources | G38: 106000
B39: Total | G39: =SUM(G36:G38) -> 5149300
B40: Asking from Asha (5519600.00-5149300.00) | G40: =G33-G39 -> 370300

Sheet Special Children
A1: Budget for 17 Special Children (All Residential) 2014-2015
A2: 11boys 8 girls
A3: Items | B3: Unit/No.s | C3: Expense per unit | D3: Time(months) | E3: Expense per year
A4: Supervisor cum teacher | B4: 1 | C4: 1000 | D4: 1000 | E4: =D4*12 -> 12000
A5: Cook salary with home | B5: 1 | C5: 0 | D5: =C5*B5 -> 0 | E5: =D5*12 -> 0
A6: Food | B6: 19 | C6: 850 | D6: 12 | E6: =B6*C6*D6 -> 193800
A7: Education | B7: 19 | C7: 300 | E7: =B7*C7 -> 5700
A8: Clothing | B8: =B6 -> 19 | C8: 500 | E8: =B8*C8 -> 9500
A9: Toiletries | B9: =B7 -> 19 | C9: 100 | E9: =B9*C9 -> 1900
A10: Bedding | B10: =B9 -> 19 | C10: 200 | E10: =B10*C10 -> 3800
A11: Sports program | E11: 1600
A12: Creative activities | E12: 1500
A14: Asking from Asha | E14: =SUM(E4:E13) -> 229800
A16: 2013-14 Amount | E16: 230300
